[Event "Fredericia IM 2022"]
[Site "Fredericia"]
[Date "2022.05.27"]
[Round "5.1"]
[White "Bogdanov, Egor"]
[Black "Vinter-Schou, Uffe"]
[Result "0-1"]
[ECO "B22"]
[WhiteElo "2415"]
[BlackElo "2321"]
[Annotator "TA"]
[PlyCount "80"]
[EventDate "2022.05.25"]
[EventType "tourn"]
[EventCountry "DEN"]
[SourceTitle "playchess.com"]
[Source "ChessBase"]
[SourceQuality "1"]
[TimeControl "40/5400+30:1800+30"]

{[%evp 16,80,25,13,14,-15,-28,-34,-31,-145,-147,-149,-135,-133,-142,-111,-103,-111,-78,-204,-220,-226,-223,-255,-258,-323,-335,-318,-305,-416,-410,-414,-386,-429,-393,-423,-429,-450,-450,-763,-554,-842,-822,-1151,-1102,-1037,-1017,-1381,-1344,-1990,-2000,-1266,-2235,-2665,-2769,-2686,-2658,-2458,-2450,-2206,-2276,-29981,-29979,-6491,-1502,-29982,-29982]} 1. e4 {[%emt 0:00:10]} c5 {[%emt 0:00:18]} 2. c3 {[%emt 0:01:17][%cal Bc2c3,Bc3d4,Bd4d5][%mdl 32]} Nf6 {[%emt 0:00:35]} 3. e5 {[%emt 0:00:04]} Nd5 {[%emt 0:00:04]} 4. d4 {[%emt 0:00:02]} cxd4 {[%emt 0:00:09]} 5. Nf3 {[%emt 0:00:02]} Nc6 {[%emt 0:00:46]} 6. cxd4 {[%emt 0:00:33]} d6 {[%emt 0:00:32]} 7. Bc4 {[%emt 0:00:07]} Nb6 {[%emt 0:00:43]} 8. Bb5 {[%emt 0:00:17]} Bd7 {[%emt 0:02:58]} 9. Nc3 {[%emt 0:00:42] 9.Nc3 is better than 9.exd6.} dxe5 {[%emt 0:00:52] B22: Sicilian: 2 c3.} 10. d5 {[%emt 0:07:15]} Nb4 {[%emt 0:05:31]} 11. Bxd7+ {[%emt 0:03:58]} Qxd7 {[%emt 0:02:58] Black is slightly better.} (11... Nxd7 12. O-O $14) 12. O-O {[%emt 0:03:08]} (12. Qb3 $1 $15 Nd3+ 13. Ke2) 12... f6 $17 {[%emt 0:16:09][%cal Rb4d5] [#]} ({Of course not} 12... N6xd5 $6 13. Nxe5 Qe6 14. Nxd5 Qxd5 15. Qg4 $14) 13. Qb3 $146 {[%emt 0:06:02]} ({Predecessor:} 13. a3 N4xd5 14. Nxe5 fxe5 15. Qh5+ g6 16. Qxe5 Nf6 17. Rd1 Qf5 18. Qxf5 gxf5 19. Nb5 {0-1 (39) Tymrakiewicz,R (2253)-Karthikeyan,M (2606) Chess.com INT 2020}) 13... N4xd5 {[%emt 0:00:45]} ({Worse is} 13... N6xd5 14. Rd1 e6 15. a3 $17) 14. Rd1 {[%emt 0:00:13][%cal Rc3d5]} e6 {[%emt 0:00:12]} 15. Be3 {[%emt 0:01:32]} Rd8 {[%emt 0:09:31]} 16. Rac1 {[%emt 0:12:59]} Nc8 {[%emt 0:11:58]} 17. Nb5 {[%emt 0:02:39] This move loses the game for White.} (17. Nd2 $17) 17... Bd6 $19 {[%emt 0:04:27]} 18. Bc5 {[%emt 0:23:12]} b6 {[%emt 0:06:25]} 19. Ba3 {[%emt 0:13:59]} Bxa3 {[%emt 0:00:24]} 20. Rc7 {[%emt 0:15:39]} Nxc7 {[%emt 0:00:08]} 21. Rxd7 {[%emt 0:00:06]} Rxd7 {[%emt 0:00:30]} (21... Kxd7 $2 {perishes.} 22. Nxa3 Nd6 23. h3 $19) 22. bxa3 {[%emt 0:02:00]} Nxb5 {[%emt 0:00:47]} 23. Qxb5 {[%emt 0:00:01]} Ke7 {[%emt 0:00:26]} 24. h4 {[%emt 0:01:02]} h5 {[%emt 0:01:44][%cal Bh7h5,Bh5g4][%mdl 32]} 25. Qb4+ {[%emt 0:01:53]} Nd6 {[%emt 0:00:15]} 26. Nd2 {[%emt 0:00:57]} Rc8 {[%emt 0:00:58] Prevents Nc4.} 27. g4 {[%emt 0:00:47]} (27. a4 $142) 27... hxg4 {[%emt 0:01:57]} 28. h5 {[%emt 0:00:17]} f5 {[%emt 0:00:27] [#] White must now prevent ...Rc1+.} 29. Qb2 {[%emt 0:02:02]} Nf7 {[%emt 0:01:34]} 30. Kg2 {[%emt 0:00:07]} Rd4 {[%emt 0:00:52]} 31. Nb3 {[%emt 0:00:20]} Rdc4 {[%emt 0:00:51]} 32. Nd2 {[%emt 0:01:24]} Rc2 {[%emt 0:00:10]} 33. Qb4+ {[%emt 0:00:04]} Nd6 {[%emt 0:00:48]} 34. Nf1 {[%emt 0:00:53]} R8c4 {[%emt 0:00:28]} 35. Qe1 {[%emt 0:01:02]} Ne4 {[%emt 0:03:15] [#] Strongly threatening ...Rc1.} 36. Ne3 {[%emt 0:00:10]} Rxf2+ {[%emt 0:00:19]} 37. Kg1 {[%emt 0:00:16]} Rc3 {[%emt 0:04:07] ...g3 is the strong threat.} 38. Nf1 {[%emt 0:01:01]} Rcf3 {[%emt 0:03:37]} 39. Ne3 {[%emt 0:00:39]} Nd2 {[%emt 0:04:25][%cal Of2f1] ( -> ...Rf1+!)} 40. Nd5+ {[%emt 0:01:01]} Kd6 {[%emt 0:00:34] Weighted Error Value: White=1.01/Black=0.16 (very precise)} 0-1

[Event "Fredericia IM 2022"]
[Site "Fredericia"]
[Date "2022.05.27"]
[Round "5.2"]
[White "Storme, Isak"]
[Black "Easwaralingam, Adesh"]
[Result "1-0"]
[ECO "B47"]
[WhiteElo "2388"]
[BlackElo "2116"]
[Annotator "TA"]
[PlyCount "73"]
[EventDate "2022.05.25"]
[EventType "tourn"]
[EventCountry "DEN"]
[SourceTitle "playchess.com"]
[Source "ChessBase"]
[SourceQuality "1"]
[TimeControl "40/5400+30:1800+30"]

{[%evp 24,73,43,50,54,67,66,60,65,42,40,43,73,67,82,81,85,83,80,70,85,45,49,17,68,69,91,72,83,72,64,75,70,62,99,99,163,150,231,228,320,325,468,453,431,461,447,390,12836,12836,12818,5747]} 1. e4 {[%emt 0:00:07]} c5 {[%emt 0:00:09]} 2. Nf3 {[%emt 0:00:08]} e6 {[%emt 0:00:16]} 3. d4 {[%emt 0:00:14]} cxd4 {[%emt 0:00:15]} 4. Nxd4 {[%emt 0:00:11]} Nc6 {[%emt 0:00:04]} 5. Nc3 {[%emt 0:00:13]} Qc7 {[%emt 0:00:06]} 6. g3 {[%emt 0:00:16]} a6 {[%emt 0:01:03]} 7. Bg2 {[%emt 0:00:53]} Nf6 {[%emt 0:00:05]} 8. O-O {[%emt 0:00:22]} Nxd4 {[%emt 0:01:16]} 9. Qxd4 {[%emt 0:00:34]} Bc5 {[%emt 0:00:10]} 10. Bf4 {[%emt 0:00:36]} d6 {[%emt 0:00:05]} 11. Qd2 {[%emt 0:00:11]} h6 {[%emt 0:00:19]} 12. Rad1 {[%emt 0:00:35]} e5 {[%emt 0:00:13]} 13. Be3 {[%emt 0:00:11]} Bxe3 {[%emt 0:00:28] B47: Sicilian: Taimanov: 5 Nc3 Qc7 6 f4, 6 g3 and 6 Be2.} 14. fxe3 {[%emt 0:00:30]} Be6 {[%emt 0:00:37]} 15. Qxd6 {[%emt 0:00:35]} Rc8 {[%emt 0:00:07] White is slightly better.} 16. Qb4 {[%emt 0:09:10] [#] White is more active.} Qe7 $146 {[%emt 0:14:28]} ({Predecessor:} 16... Qc5 17. Qxc5 Rxc5 18. Rd2 Rxc3 19. bxc3 Nd7 20. a4 Ke7 21. Rb1 Nc5 22. a5 Rc8 {0-1 (62) Levitsky,A (2348)-Chigaev,M (2630) Chess.com INT 2021}) 17. Qa4+ {[%emt 0:03:34]} Bd7 {[%emt 0:02:22]} 18. Qb3 {[%emt 0:01:47]} b5 {[%emt 0:02:45]} 19. Nd5 {[%emt 0:04:59]} Nxd5 {[%emt 0:00:35]} 20. exd5 {[%emt 0:00:54]} ({But not} 20. Qxd5 Rxc2 21. Rc1 Bc6 $11) 20... Qd6 {[%emt 0:00:12]} 21. Qd3 {[%emt 0:05:57]} h5 {[%emt 0:06:54]} 22. h4 {[%emt 0:06:10]} O-O $1 {[%emt 0:02:01]} 23. c3 {[%emt 0:06:12]} Rc4 {[%emt 0:06:30]} (23... Bg4 $11) 24. e4 $14 {[%emt 0:02:29]} Qc5+ {[%emt 0:07:59]} 25. Kh2 {[%emt 0:00:34]} b4 {[%emt 0:00:07][%cal Rb4c3]} 26. Rc1 $36 {[%emt 0:03:30][%mdl 2048] [#] Strongly threatening cxb4. Black is under strong pressure.} bxc3 {[%emt 0:06:48]} 27. Rxc3 {[%emt 0:01:09]} Rxc3 {[%emt 0:03:25]} 28. Qxc3 {[%emt 0:01:12]} Qd6 {[%emt 0:02:19]} 29. Rc1 {[%emt 0:05:00]} Bb5 {[%emt 0:11:42]} (29... Rc8 $16 {was necessary.} 30. Qe3 Rxc1 31. Qxc1 Qb6) 30. Qc5 {[%emt 0:09:15]} Qf6 {[%emt 0:04:23]} (30... Qxc5 $16 31. Rxc5 Rd8) 31. Rc2 $18 {[%emt 0:01:53]} Qd8 {[%emt 0:05:08]} (31... Rd8 $142 32. b3 Qd6 33. Qxd6 Rxd6 34. Rc8+ Kh7) 32. d6 {[%emt 0:00:48][%cal Bd5d6,Bd6c7][%mdl 32]} Re8 {[%emt 0:00:55]} (32... Qf6 {might work better.} 33. Rf2 Qg6 34. Qxe5 Rd8) 33. Bh3 {[%emt 0:11:34]} Bd7 {[%emt 0:02:34]} 34. Qc7 {[%emt 0:00:37]} Bxh3 {[%emt 0:00:31]} 35. Kxh3 {[%emt 0:00:07] [#] And now d7 would win.} Qxc7 {[%emt 0:01:06]} (35... Rf8 36. d7 Qf6) 36. dxc7 {[%emt 0:00:07]} Rc8 {[%emt 0:00:08]} 37. b4 {[%emt 0:00:53] Weighted Error Value: White=0.07 (flawless) /Black=0.29 (precise)} 1-0

[Event "Fredericia IM 2022"]
[Site "Fredericia"]
[Date "2022.05.27"]
[Round "5.3"]
[White "Ramsdal, Jens Albert"]
[Black "Andersson, Christin"]
[Result "*"]
[WhiteElo "2267"]
[BlackElo "2028"]
[Annotator "TA"]
[PlyCount "38"]
[EventDate "2022.05.25"]
[EventType "tourn"]
[EventCountry "DEN"]
[SourceTitle "playchess.com"]
[Source "ChessBase"]
[SourceQuality "1"]
[TimeControl "40/5400+30:1800+30"]

{[%evp 7,7,0]} 1. Nf3 {[%emt 0:00:10]} Nf6 {[%emt 0:02:02]} 2. c4 {[%emt 0:00:31]} c6 {[%emt 0:00:09]} 3. g3 {[%emt 0:00:51]} d5 {[%emt 0:00:11]} 4. Bg2 {[%emt 0:01:22] [#] An uneventful encounter.} {Predecessor:} Bg4 $146 5. Ne5 Be6 6. cxd5 {E02: Open Catalan: 5 Qa4+.} Bxd5 7. Nf3 c5 8. Nc3 Bc6 9. O-O e6 10. d4 Nbd7 11. e4 Nxe4 12. Nxe4 Bxe4 13. Re1 Bd5 14. dxc5 Be7 15. b4 O-O 16. Bb2 a5 17. a3 b6 18. Nd4 Bxg2 19. Kxg2 axb4 {1-0 (45) Artemiev,V (2700)-Le,Q (2709) chess24.com INT 2022} *

[Event "Fredericia IM 2022"]
[Site "Fredericia"]
[Date "2022.05.27"]
[Round "5.4"]
[White "Thorsbro, Peter"]
[Black "Fries-Nielsen, Jens Ove"]
[Result "1-0"]
[ECO "A46"]
[WhiteElo "2192"]
[BlackElo "2370"]
[Annotator "TA"]
[PlyCount "93"]
[EventDate "2022.05.25"]
[EventType "tourn"]
[EventCountry "DEN"]
[SourceTitle "playchess.com"]
[Source "ChessBase"]
[SourceQuality "1"]
[TimeControl "40/5400+30:1800+30"]

{[%evp 9,93,0,19,17,16,28,16,5,9,10,45,-52,30,28,47,20,40,-14,-11,-2,-12,-81,-75,-125,-114,-113,-110,-111,0,0,0,0,0,0,50,60,235,-93,-128,-105,484,782,842,752,626,0,0,0,859,851,746,762,817,582,864,810,781,0,0,0,754,663,962,644,865,0,0,0,832,806,829,695,597,547,29981,29982,29982,29983,29983,29983,29990,29991,29991,29992,29992,6187]} 1. d4 {[%emt 0:09:43]} Nf6 {[%emt 0:00:52]} 2. Nf3 {[%emt 0:00:09]} e6 {[%emt 0:01:02]} 3. Bf4 {[%emt 0:02:10]} b6 {[%emt 0:00:12]} 4. e3 {[%emt 0:00:06]} Bb7 {[%emt 0:00:09]} 5. Bd3 {[%emt 0:00:09]} Bd6 {[%emt 0:01:21]} 6. Bxd6 {[%emt 0:00:41] A47: 1 d4 Nf6 2 Nf3 b6: Torre, London and Colle Systems.} cxd6 {[%emt 0:00:05]} 7. Nbd2 {[%emt 0:00:12]} d5 {[%emt 0:00:17]} 8. Qe2 {[%emt 0:00:23][%cal Og2g4] The position is equal.} O-O {[%emt 0:00:16] [#]} 9. h4 $146 {[%emt 0:05:52][%cal Bh2h4,Bh4h5,Bh5g6][%mdl 32]} ({Predecessor:} 9. c3 Ne4 10. O-O d6 11. Rfc1 Nd7 12. Nf1 Rc8 13. N3d2 Ndf6 14. f3 Nxd2 15. Nxd2 {0-1 (33) Stripunsky,A (2492)-Nilsson,J (2224) Chess.com INT 2020}) 9... Qc8 {[%emt 0:02:36]} 10. g4 {[%emt 0:17:45]} (10. O-O-O $14) 10... Ba6 {[%emt 0:01:21]} ({Better is} 10... Nxg4 $15 11. Ng5 Nf6) 11. g5 {[%emt 0:11:04]} Ne4 {[%emt 0:00:23]} 12. h5 {[%emt 0:01:24]} d6 {[%emt 0:02:19]} 13. g6 {[%emt 0:02:44]} (13. Bxa6 $14 Qxa6 14. Nxe4 dxe4 15. Nd2) 13... fxg6 $11 {[%emt 0:01:03]} 14. hxg6 {[%emt 0:00:51]} h6 {[%emt 0:00:13]} 15. Rh4 {[%emt 0:06:02]} (15. Bxa6 $11 {remains equal.} Qxa6 16. Nxe4 dxe4 17. Nd2) 15... Nxd2 $17 {[%emt 0:00:54]} 16. Kxd2 {[%emt 0:00:49]} (16. Nxd2 $142 Bxd3 17. Qxd3) 16... Bxd3 {[%emt 0:01:39]} 17. cxd3 {[%emt 0:02:44][%cal Of3g5]} Nc6 {[%emt 0:01:02]} 18. Ng5 {[%emt 0:07:59][%cal Oa1c1]} Nb4 {[%emt 0:12:18]} (18... hxg5 $2 19. Rh8+ $3 {[%mdl 512]} Kxh8 20. Qh5+ Kg8 21. Qh7#) (18... Rf6 $17 {Threatens to win with ...Qa6.} 19. Rc1 Qd7) 19. Rc1 $11 {[%emt 0:00:31]} Qd8 {[%emt 0:01:05]} 20. f4 {[%emt 0:01:46][%cal Oe2g4] Qg4! is the strong threat.} Rc8 {[%emt 0:17:48] And now ...Qd7 would win.} (20... Nxa2 21. Ra1 (21. Rch1 Qd7 $17) 21... Nb4 22. Qg4 $15) (20... hxg5 $2 21. Qh5 $1 gxh4 22. Qh7#) 21. Qg4 {[%emt 0:02:29]} Re8 {[%emt 0:08:43]} (21... Rf6 $11 22. Nh7 (22. Nxe6 $2 Qd7 $17) 22... Rxc1 23. Nxf6+ Kf8 24. Rxh6 (24. Kxc1 Qc8+ 25. Kd2 Qc2+ 26. Ke1 Nxd3+ 27. Kf1 Qf2#) (24. Nh7+ $2 Ke7 $19) 24... Rc2+ 25. Kd1 Rc1+ 26. Kd2 (26. Kxc1 Qc8+ 27. Kd2 Qc2+ 28. Ke1 Nxd3+ 29. Kf1 Qf2#) 26... Rc2+ 27. Kd1 Rc1+ 28. Kd2 (28. Kxc1 Qc8+ 29. Kd2 Qc2+ 30. Ke1 Nxd3+ 31. Kf1 Qf2#)) 22. Nf7 $1 $14 {[%emt 0:13:12] Really sharp!} (22. Nxe6 $2 Qd7 23. Rhh1 (23. Nxg7 Qxg4 24. Rxg4 Kxg7 $17) 23... Rxe6 $17) 22... Qd7 {[%emt 0:17:08] [#]} ({Black should play} 22... Qe7 $14 23. Rxc8 Rxc8 24. Nxh6+ (24. a3 $2 Rc2+ 25. Ke1 Nxd3+ 26. Kf1 Qc7 $19) 24... gxh6 25. Rxh6 Rc2+ 26. Kd1 Rc1+ 27. Kd2 (27. Kxc1 Qc7+ 28. Kd2 Qc2+ 29. Ke1 Nxd3+ 30. Kf1 Qf2#) 27... Rc2+ 28. Kd1 Rc1+ 29. Kd2 (29. Kxc1 Qc7+ 30. Kd2 Qc2+ 31. Ke1 Nxd3+ 32. Kf1 Qf2#) 29... Rc2+) 23. Nxh6+ $2 {[%emt 0:08:55]} gxh6 $17 {[%emt 0:00:06]} 24. Rxh6 {[%emt 0:00:04]} Qb5 $2 {[%emt 0:04:42][%mdl 8192] [#]} (24... Nxa2 25. Qh5 $1 Nxc1 26. Rh8+ Kg7 27. Rh7+ Kg8 28. Qh6 Nb3+ 29. Ke2 Rc2+ 30. Kf3) (24... Rxc1 $17 {stays on course.} 25. Qh5 Qg7 $1) 25. Rh8+ $3 $18 {[%emt 0:03:18][%mdl 512]} Kg7 {[%emt 0:00:05]} 26. Rh7+ {[%emt 0:00:01]} (26. Rxc8 Qxd3+ 27. Ke1 Qxe3+ 28. Kf1 Rxh8 $11) 26... Kg8 {[%emt 0:00:09]} 27. Rh8+ $2 {[%emt 0:00:55]} Kg7 $11 {[%emt 0:00:01]} (27... Kxh8 $2 28. Qh5+ Kg8 29. Qh7+ Kf8 30. Qf7#) 28. Rh7+ $2 $40 {[%emt 0:00:03][%mdl 8320] White is up to no good.} (28. Rxc8 $11 Qxd3+ 29. Ke1 Qxe3+ 30. Kf1 Rxh8 31. Rxh8 (31. Rc7+ Kg8 $11)) 28... Kg8 $18 {[%emt 0:00:08] [#]} 29. Rxc8 $1 {[%emt 0:01:08]} Qxd3+ {[%emt 0:00:26]} 30. Ke1 {[%emt 0:00:03][%cal Rc8e8]} Qxe3+ {[%emt 0:04:23] [#]} 31. Kf1 $1 {[%emt 0:00:02][%cal Rc8e8]} Rxc8 {[%emt 0:14:13] [#]} 32. Rh8+ $3 {[%emt 0:00:02][%mdl 576] Skewer} Kg7 {[%emt 0:00:08]} 33. Rh7+ {[%emt 0:00:01]} Kg8 {[%emt 0:00:09]} 34. Rh8+ $1 {[%emt 0:00:02][%mdl 64] Skewer} Kg7 {[%emt 0:00:18] ( -> ...Rc1+)} (34... Kxh8 $2 {gets mated.} 35. Qh5+ Kg8 36. Qh7+ Kf8 37. Qf7#) 35. Rxc8 {[%emt 0:00:03][%mdl 4096] Endgame White wants to mate with Rc7+. KQR-KQN} Nd3 {[%emt 0:00:07][%csl Gd3][%cal Re3f2]} 36. Rc7+ {[%emt 0:00:18]} Kg8 {[%emt 0:00:10][%csl Gd3][%cal Re3f2]} 37. Rc8+ $2 {[%emt 0:00:02]} (37. Qh4 $18 {[%cal Rh4d8]} Qf3+ 38. Kg1 Qe3+ 39. Kh2 Qxf4+ 40. Qxf4 Nxf4 41. Rxa7) 37... Kg7 $11 {[%emt 0:00:06][%csl Gd3][%cal Re3f2]} 38. Rc7+ $2 {[%emt 0:00:04][%mdl 8192]} (38. Qh4 $11 Qf3+ 39. Kg1 Qe3+ 40. Kh2 Qe2+ 41. Kh1 (41. Kg1 Qe3+ 42. Kh2 Qe2+ 43. Kh1 Qd1+ 44. Kg2 Qe2+ 45. Kh3 Nf2+ 46. Kh2 Ne4+ 47. Kh3 Qf3+ 48. Kh2 Qe2+ 49. Kh3 Qf3+ 50. Kh2 Qe2+ $11) 41... Qf1+ 42. Kh2 Qe2+ 43. Kh3 (43. Kg1 Qe3+ 44. Kh1 Qe4+ 45. Kh2 Qe2+ $11) 43... Qf1+ 44. Kg3 Qf2+ 45. Kh3 Qf1+ 46. Kh2 Qe2+) 38... Kg8 $18 {[%emt 0:00:04][%csl Gd3][%cal Re3f2]} 39. Qh4 {[%emt 0:02:08][%cal Rh4d8] Inhibits Qf2+.} Qf3+ {[%emt 0:03:43]} 40. Kg1 {[%emt 0:00:04][%cal Rh4d8]} Qe3+ {[%emt 0:02:40]} 41. Kh2 {[%emt 0:30:25][%cal Rh4d8]} Qe2+ {[%emt 0:09:25]} 42. Kg3 {[%emt 0:00:00][%cal Rh4d8] White mates.} Qe3+ {[%emt 0:01:47]} 43. Kg4 {[%emt 0:00:00][%cal Rh4d8]} Qxf4+ {[%emt 0:01:49]} 44. Kh5 {[%emt 0:00:00]} Qf3+ {[%emt 0:03:09]} 45. Kg5 {[%emt 0:00:00]} Qe3+ {[%emt 0:07:27]} 46. Kf6 {[%emt 0:00:00][%cal Rc7c8]} Qf3+ {[%emt 0:00:24]} 47. Ke7 {[%emt 0:00:00] Weighted Error Value: White=0.62/Black=0.58} (47. Kxe6 $142 Qe3+ 48. Kd7 Kg7 49. Rc8 Nc5+ 50. dxc5 Kxg6 51. Rg8+ Kf7 52. Qh7+ Kf6 53. Qg7+ Kf5 54. Qg4+ Ke5 55. Re8+ Kf6 56. Rf8+ Ke5 57. Rf5#) 1-0

[Event "Fredericia IM 2022"]
[Site "Fredericia"]
[Date "2022.05.27"]
[Round "5.5"]
[White "Hilwerda, Jonas"]
[Black "Egilstoft, Rogvi"]
[Result "1-0"]
[ECO "A11"]
[WhiteElo "2275"]
[BlackElo "2334"]
[Annotator "TA"]
[PlyCount "81"]
[EventDate "2022.05.25"]
[EventType "tourn"]
[EventCountry "DEN"]
[SourceTitle "playchess.com"]
[Source "ChessBase"]
[SourceQuality "1"]
[TimeControl "40/5400+30:1800+30"]

{[%evp 9,81,32,44,40,64,53,59,12,69,64,156,152,147,99,159,151,177,124,169,114,168,97,133,134,141,110,109,111,104,88,101,94,113,104,123,121,115,120,104,88,113,78,156,156,210,168,162,156,274,157,311,314,468,464,412,375,360,352,566,537,790,794,1326,1307,1541,1443,2318,2151,1600,0,5613,4172,29985,29985]} 1. e4 {[%emt 0:00:03]} a6 {[%emt 0:01:45]} 2. d4 {[%emt 0:04:04]} b5 {[%emt 0:00:24]} 3. Nf3 {[%emt 0:06:17]} Bb7 {[%emt 0:00:21]} 4. Bd3 {[%emt 0:00:07]} e6 {[%emt 0:00:19]} 5. Qe2 {[%emt 0:01:07]} c5 {[%emt 0:01:23]} 6. c3 {[%emt 0:00:35] B00: Queen's Fianchetto Defence, Nimzowitsch Defence.} d5 {[%emt 0:00:48]} 7. e5 {[%emt 0:00:34]} Nc6 {[%emt 0:00:31] [#]} 8. Be3 $146 {[%emt 0:09:26]} (8. dxc5 $14 {deserves consideration.} Bxc5 9. Nbd2) ({Predecessor:} 8. dxc5 Bxc5 9. Be3 Bxe3 10. Qxe3 Nge7 11. O-O Qc7 12. Nbd2 Ng6 13. Rfe1 O-O 14. Nb3 {½-½ (54) Astengo,C (2110)-Meijers,V (2485) Lugano 2007}) 8... Qb6 {[%emt 0:00:34]} (8... c4 $11 9. Bc2 Nge7) 9. Nbd2 $14 {[%emt 0:06:06]} Nh6 {[%emt 0:02:16]} (9... c4 $14) 10. Bxh6 {[%emt 0:02:41] Hoping for dxc5.} gxh6 {[%emt 0:00:11]} 11. Qe3 {[%emt 0:00:05]} (11. O-O $142) 11... b4 {[%emt 0:19:55]} (11... cxd4 $142 12. Nxd4 Bg7) 12. O-O $16 {[%emt 0:00:45][%cal Bh1f1,Bf1c1,Bc1c2][%mdl 32]} a5 {[%emt 0:00:43]} 13. a3 {[%emt 0:11:52]} (13. dxc5 $1 $18 Qxc5 14. Nd4) 13... Ba6 {[%emt 0:10:01] [#]} 14. Bxa6 {[%emt 0:06:07]} (14. axb4 $1 $18 Bxd3 15. Qxd3 cxb4 16. c4) 14... cxd4 {[%emt 0:14:27] [#]} (14... bxc3 $16 15. bxc3 cxd4 16. Nxd4 (16. cxd4 Qxa6 17. Rfc1 a4 $16) 16... Qxa6) 15. cxd4 $1 {[%emt 0:03:39]} Rxa6 {[%emt 0:01:14]} (15... Qxa6 16. Rfc1) 16. Rfc1 {[%emt 0:00:44]} Bg7 {[%emt 0:04:08]} 17. Nb3 {[%emt 0:01:39]} O-O {[%emt 0:02:17]} 18. Nc5 {[%emt 0:00:22]} Ra7 {[%emt 0:00:14]} 19. Ne1 {[%emt 0:01:32]} Rc8 {[%emt 0:05:20]} 20. Ned3 {[%emt 0:03:34]} Rac7 {[%emt 0:00:38]} 21. Rc2 {[%emt 0:00:36]} Kh8 {[%emt 0:13:27]} 22. Rac1 {[%emt 0:00:40]} Bf8 {[%emt 0:01:18]} 23. a4 {[%emt 0:07:57]} (23. Qf4 {feels hotter.} Kg8 24. h4 Ne7 25. h5) 23... Qa7 {[%emt 0:03:00]} 24. g4 {[%emt 0:07:09]} Be7 {[%emt 0:02:35]} 25. Kf1 {[%emt 0:02:51]} Kg7 {[%emt 0:01:47]} (25... Qa8 $142) 26. Kg2 {[%emt 0:08:18] Black must now prevent Nf4.} Kg8 {[%emt 0:05:36]} (26... Kh8 $16 {was called for.} 27. Nb3 Qa6) 27. Kg3 {[%emt 0:01:34]} Kh8 {[%emt 0:02:07]} 28. h4 {[%emt 0:01:03]} Qa8 {[%emt 0:02:26]} (28... Bf8 $16 {is a better defense.} 29. b3 Qb6) 29. Kh3 {[%emt 0:01:46]} (29. Nf4 $18) 29... Rg8 $2 {[%emt 0:01:30]} (29... Bf8 $16 {might work better.} 30. Nf4 Ne7) 30. Nb3 $18 {[%emt 0:02:04]} Qa6 {[%emt 0:02:17]} (30... h5 {was worth a try.}) 31. Nf4 {[%emt 0:01:32]} Bd8 {[%emt 0:01:47]} 32. Nh5 {[%emt 0:06:38]} Rg6 {[%emt 0:00:04]} 33. f4 {[%emt 0:00:55][%cal Bf2f4,Bf4f5][%mdl 32]} Qc8 $2 {[%emt 0:00:09]} (33... Rg8 {was necessary.} 34. Qf3 Qa8) 34. Qd3 {[%emt 0:00:28] Active counter play!} f5 {[%emt 0:00:43]} 35. exf6 {[%emt 0:01:19]} Bxf6 {[%emt 0:00:20] [#]} 36. Nxa5 $1 {[%emt 0:00:46][%mdl 512] Pair of Knights!} e5 {[%emt 0:01:17]} (36... Qg8 37. Nxc6) 37. f5 {[%emt 0:00:02]} Rxg4 {[%emt 0:00:29]} 38. Kxg4 {[%emt 0:00:26][%cal Rc2c6]} e4 {[%emt 0:00:03]} 39. Qb5 $2 {[%emt 0:02:00]} ({Better is} 39. Qf1 $18) 39... Qg8+ $2 {[%emt 0:00:58][%mdl 8192]} (39... Nxd4 $11 40. Qxd5 Nxc2 41. Rxc2 Rxc2 42. Nxf6 Rc5 43. Qxe4 Rxa5) 40. Kh3 {[%emt 0:00:02]} Qc8 {[%emt 0:00:12]} 41. Qxd5 {[%emt 0:02:59] Weighted Error Value: White=0.28 (precise) /Black=0.65} 1-0

[Event "Fredericia IM 2022"]
[Site "Fredericia"]
[Date "2022.05.28"]
[Round "6.1"]
[White "Storme, Isak"]
[Black "Ramsdal, Jens Albert"]
[Result "1-0"]
[ECO "B31"]
[WhiteElo "2388"]
[BlackElo "2267"]
[Annotator "TA"]
[PlyCount "55"]
[EventDate "2022.05.25"]
[EventType "tourn"]
[EventCountry "DEN"]
[SourceTitle "playchess.com"]
[Source "ChessBase"]
[SourceQuality "1"]
[TimeControl "40/5400+30:1800+30"]

{[%evp 20,55,73,17,16,24,97,118,105,114,163,176,165,119,179,181,213,222,278,292,310,311,583,571,758,747,828,837,1441,1452,29991,29992,29992,29993,29994,29995,29997,29998]} 1. e4 {[%emt 0:00:36]} c5 {[%emt 0:00:27]} 2. Nf3 {[%emt 0:00:07]} Nc6 {[%emt 0:00:49]} 3. Bb5 {[%emt 0:01:28]} g6 {[%emt 0:00:14]} 4. O-O {[%emt 0:00:15]} Bg7 {[%emt 0:00:03]} 5. c3 {[%emt 0:00:29]} e5 {[%emt 0:06:33]} 6. d4 {[%emt 0:01:01]} exd4 {[%emt 0:00:30]} 7. cxd4 {[%emt 0:00:07]} cxd4 {[%emt 0:00:44]} 8. Bf4 {[%emt 0:03:33]} Nge7 {[%emt 0:04:41]} 9. Bd6 {[%emt 0:03:58]} O-O {[%emt 0:02:51]} 10. Nbd2 {[%emt 0:02:35]} b6 {[%emt 0:08:47]} 11. a4 {[%emt 0:16:05]} ({White should try} 11. Nb3 $16) 11... Bb7 $11 {[%emt 0:02:35] B31: Sicilian: 2...Nc6 3 Bb5 g6.} 12. Bc4 {[%emt 0:01:08]} Nc8 {[%emt 0:04:42]} 13. Bxf8 $16 {[%emt 0:05:31] White is much more active.} Qxf8 {[%emt 0:00:28] [#] White is better.} 14. Re1 $146 {[%emt 0:04:11]} ({Predecessor:} 14. Ng5 Ne5 15. Ba2 Ba6 16. f4 Qe7 17. fxe5 Qxg5 18. Rxf7 Kh8 19. Nf3 Qe3+ 20. Kh1 {1-0 (20) Mortensen,E (2510)-Schmied,A (2155) Reykjavik 1998}) 14... Nb4 {[%emt 0:05:23] [#]} (14... Nd6 $16) 15. Qb3 $1 $18 {[%emt 0:06:46]} a5 {[%emt 0:01:31] [#]} 16. e5 {[%emt 0:00:52] Prevents Nd6.} d5 {[%emt 0:01:53]} (16... d6 $16) 17. Bb5 {[%emt 0:00:39]} Na7 {[%emt 0:04:23]} 18. Nxd4 {[%emt 0:01:04]} Qc5 {[%emt 0:04:31]} 19. N2f3 {[%emt 0:01:00][%cal Bd2f3,Bf3g5,Bg5f7][%mdl 32]} Nxb5 {[%emt 0:00:26]} 20. axb5 {[%emt 0:00:44]} ({Much less strong is} 20. Nxb5 $6 Qc4 21. Qd1 Qd3 $18) 20... Qc4 $2 {[%emt 0:04:35]} (20... Bc8 {was worth a try.} 21. Rec1 Qf8) 21. Qe3 {[%emt 0:01:25]} Qd3 {[%emt 0:14:37]} 22. Qf4 {[%emt 0:01:55]} Rf8 {[%emt 0:00:07]} 23. Re3 {[%emt 0:01:53]} g5 {[%emt 0:03:36]} 24. Nxg5 {[%emt 0:00:40] Threatening mate with Nf5.} Qd2 {[%emt 0:02:42]} 25. Nf5 {[%emt 0:02:46] White mates.} f6 {[%emt 0:04:02]} 26. exf6 {[%emt 0:04:54]} Bxf6 {[%emt 0:00:56]} 27. Nh6+ {[%emt 0:00:28]} Kh8 {[%emt 0:01:34]} 28. Ngf7+ {[%emt 0:00:35] Weighted Error Value: White=0.06 (flawless) /Black=0.82} 1-0